bitfinex-derivatives/quotes_ETHF0:USTF0_20241024
["timestamp","ask_amount","ask_price","bid_price","bid_amount"]
[1729779271056,0.39629,2525.6,2525.4,0.6212]
[1729779271057,0.39627,2525.7,2525.6,0.39628]
[1729779271556,0.39629,2525.6,2525.5,0.39628]
[1729779272050,3.09689327,2525.7,2525.4,0.6212]
[1729779272248,0.39629,2525.6,2525.5,0.39628]
[1729779272446,3.49316327,2525.7,2525.6,0.39628]
[1729779272757,3.49314327,2525.8,2525.7,0.39625]
[1729779273457,3.09689327,2525.8,2525.7,0.39625]
[1729779273649,3.2078,2526.0,2525.4,1.61197]
[1729779273850,3.2078,2526.0,2525.9,0.39623]
[1729779274860,0.3962,2526.1,2526.0,0.39621]
[1729779275159,0.39621,2526.0,2525.7,0.39626]
[1729779275362,0.39621,2526.0,2525.3,4.1986]
[1729779275363,0.39627,2525.7,2525.6,0.39626]
[1729779276766,0.39628,2525.6,2525.5,0.98149]
[1729779279160,3.09689327,2525.8,2525.5,0.5852]
[1729779279361,0.39626,2525.8,2525.7,0.39625]
[1729779281260,3.60404,2525.9,2525.8,0.39625]
[1729779281456,0.39625,2525.8,2525.7,0.39625]
[1729779281661,3.60404,2525.9,2525.8,0.39625]
[1729779281858,3.2078,2525.9,2525.8,0.39625]
[1729779282666,3.09689327,2526.1,2526.0,0.39621]
[1729779283262,3.09689327,2526.1,2526.0,0.98671]
[1729779284166,3.49309327,2526.1,2526.0,0.98671]
[1729779284372,3.09689327,2526.1,2526.0,0.98671]
[1729779284864,0.39619,2526.2,2526.1,0.39619]
[1729779285064,6.30469327,2526.3,2526.0,0.5905]
[1729779285258,6.30469327,2526.3,2526.2,0.39618]
[1729779285463,3.2078,2526.3,2526.2,0.39618]
[1729779286269,6.30469327,2526.3,2526.0,0.5905]
[1729779286771,0.3962,2526.1,2526.0,0.9867]
[1729779286970,3.49309327,2526.1,2526.0,0.9867]
[1729779287276,0.3962,2526.1,2526.0,0.9867]
[1729779288366,0.39619,2526.2,2526.1,0.39618]
[1729779288575,3.09689327,2526.3,2526.1,0.39618]
[1729779288770,0.3962,2526.1,2526.0,0.98669]
[1729779288970,0.3962,2526.2,2526.1,0.39618]
[1729779289378,0.3962,2526.2,2526.0,0.5905]
[1729779289379,3.09689327,2526.3,2526.0,0.5905]
[1729779289680,3.09689327,2526.3,2526.0,0.98671]
[1729779289681,0.3962,2526.1,2526.0,0.98671]
[1729779289979,0.39627,2525.7,2525.6,0.39626]
[1729779291175,3.09689327,2525.8,2525.4,2.19847]
[1729779291176,3.49315327,2525.8,2525.7,0.39626]
[1729779291567,0.39626,2525.8,2525.7,0.39626]
[1729779293177,0.5704,2525.9,2525.4,1.2077]
[1729779293373,0.39629,2525.6,2525.5,0.39628]
[1729779293579,0.39629,2525.5,2525.4,1.604]
[1729779294674,3.09689327,2525.6,2525.2,0.99085]
[1729779294675,0.39633,2525.3,2525.2,0.39632]
[1729779294876,7.29539327,2525.6,2525.1,0.5614]
[1729779295177,0.39634,2525.3,2525.2,0.39633]
[1729779295377,0.39634,2525.3,2525.0,1.1237]
[1729779295378,3.09689327,2525.3,2525.0,1.1237]
[1729779295583,0.39636,2525.2,2525.1,0.39634]
[1729779296377,3.49323327,2525.3,2525.2,0.39634]
[1729779296673,0.598,2525.4,2525.0,2.11463]
[1729779296877,0.39631,2525.5,2525.4,0.39629]
[1729779297088,7.29532327,2525.8,2525.1,7.1678]
[1729779297089,6.30469327,2525.8,2525.1,3.2078]
[1729779297382,3.49314327,2525.8,2525.7,0.39626]
[1729779298174,0.39629,2525.6,2525.5,0.39627]
[1729779298378,3.49318327,2525.6,2525.5,0.39627]
[1729779298583,3.09689327,2525.6,2525.3,1.1714]
[1729779298784,0.39631,2525.5,2525.4,0.39629]
[1729779298980,0.39631,2525.5,2525.4,4.35629]
[1729779299585,0.39631,2525.5,2525.4,0.39629]
[1729779300278,0.39628,2525.7,2525.6,0.39626]
[1729779300479,0.39628,2525.7,2525.3,1.1714]
[1729779300480,3.09689327,2525.8,2525.4,4.19857]
[1729779300682,3.49314327,2525.8,2525.7,0.39626]
[1729779300883,3.49314327,2525.8,2525.6,0.39627]
[1729779300884,0.39628,2525.7,2525.6,0.39627]
[1729779301088,0.39631,2525.5,2525.4,0.39629]
[1729779301275,0.39627,2525.7,2525.5,0.39629]
[1729779301479,0.39627,2525.7,2525.6,0.39628]
[1729779301681,3.09689327,2525.8,2525.4,3.2078]
[1729779301886,3.49318327,2525.6,2525.5,0.39628]
[1729779302685,3.09689327,2525.8,2525.5,0.39628]
[1729779302886,0.39628,2525.7,2525.6,0.39626]
[1729779304789,3.09689327,2525.8,2525.3,4.3792]
[1729779305085,3.49314327,2525.8,2525.7,0.39626]
[1729779305883,0.39628,2525.7,2525.6,0.39627]
[1729779306292,0.39631,2525.5,2525.4,0.3963]
[1729779306585,0.39631,2525.5,2525.2,0.39633]
[1729779306586,0.39634,2525.3,2525.2,0.39633]
[1729779306795,3.09689327,2525.3,2525.0,0.99093]
[1729779306982,3.09689327,2525.3,2525.2,0.39634]
[1729779306983,3.49322327,2525.3,2525.2,0.39634]
[1729779307183,0.39637,2525.1,2525.0,0.39636]
[1729779307685,0.39635,2525.2,2525.1,0.39634]
[1729779308093,6.70103327,2525.3,2525.2,0.39634]
[1729779308294,3.49323327,2525.3,2525.2,0.39634]
[1729779308791,3.2078,2525.6,2525.5,0.39629]
[1729779308984,0.39629,2525.6,2525.5,0.39628]
[1729779309191,3.09689327,2525.7,2525.3,3.2078]
[1729779309385,0.39632,2525.4,2525.3,0.39631]
[1729779309887,0.39635,2525.2,2525.1,0.39633]
[1729779311690,0.39637,2525.1,2525.0,0.39636]
[1729779311886,0.39635,2525.2,2525.1,0.39634]
[1729779312790,0.584,2525.3,2524.9,2.15077]
[1729779312989,0.98034,2525.3,2525.2,0.39634]
[1729779313189,0.98034,2525.3,2524.9,1.1598]
[1729779313190,0.584,2525.3,2524.9,1.1598]
[1729779313391,0.39637,2525.1,2525.0,0.39636]
[1729779313997,0.39637,2525.1,2524.9,1.1598]
[1729779313998,0.584,2525.3,2524.9,1.1598]
[1729779314299,0.39635,2525.2,2525.1,0.39634]
[1729779315396,0.584,2525.3,2524.9,1.1598]
[1729779315594,1.57482,2525.3,2524.9,1.1598]
[1729779315796,1.57482,2525.3,2524.7,0.39641]
[1729779315797,0.3964,2524.8,2524.7,0.39641]
[1729779316001,0.39643,2524.7,2524.6,0.39642]
[1729779316495,3.09689327,2524.8,2524.4,0.39645]
[1729779316702,0.39645,2524.5,2524.4,0.39645]
[1729779318198,0.96574,2524.6,2524.5,0.39645]
[1729779318596,3.7776,2524.9,2524.3,0.5973]
[1729779318895,0.39636,2525.2,2525.1,0.39634]
[1729779319104,1.1336,2525.3,2524.8,0.99099]
[1729779319105,0.5557,2525.3,2524.9,2.17077]
[1729779319305,3.2078,2525.4,2525.3,0.39632]
[1729779319507,6.88259327,2525.7,2525.1,3.2078]
[1729779319803,0.95195,2525.8,2525.7,0.39626]
[1729779320389,3.65259327,2525.8,2525.5,1.1399]
[1729779320593,3.49317327,2525.6,2525.5,0.39629]
[1729779320795,3.09689327,2525.6,2525.4,3.2078]
[1729779320990,0.39629,2525.5,2525.2,1.1399]
[1729779321205,3.49321327,2525.3,2525.2,1.53623]
[1729779321406,0.39632,2525.3,2525.2,1.53623]
[1729779321604,3.49319327,2525.5,2525.4,0.39631]
[1729779321791,3.49319327,2525.5,2525.2,1.1399]
[1729779321792,0.39632,2525.4,2525.3,0.39631]
[1729779322292,3.09689327,2525.5,2524.9,0.5575]
[1729779322493,0.39632,2525.4,2525.3,0.39631]
[1729779322895,3.09689327,2525.5,2525.3,0.39631]
[1729779323089,3.09689327,2525.5,2525.4,0.39631]
[1729779323090,3.49319327,2525.5,2525.4,0.39631]
[1729779323609,3.2078,2526.5,2525.4,7.1678]
[1729779323900,0.95946,2526.4,2526.3,0.39617]
[1729779324400,3.7781,2526.5,2526.4,0.39615]
[1729779324998,0.5633,2526.6,2526.5,0.39614]
[1729779325201,0.5633,2526.6,2526.1,4.1983]
[1729779325394,0.95943,2526.6,2526.4,0.39614]
[1729779325596,0.5633,2526.6,2526.5,0.39614]
[1729779325797,3.09689327,2526.7,2526.1,4.1983]
[1729779326106,3.2078,2526.8,2526.7,0.3961]
[1729779326293,3.60389,2526.8,2526.7,0.3961]
[1729779326602,3.60389,2526.8,2526.6,0.39611]
[1729779326805,3.60389,2526.8,2526.3,0.99043]
[1729779327116,3.2078,2526.8,2526.7,0.3961]
[1729779327608,0.39609,2526.8,2526.7,0.3961]
[1729779327900,4.05627327,2526.9,2526.8,0.39609]
[1729779328294,3.66019327,2526.9,2526.8,0.39609]
[1729779328493,0.5633,2526.9,2526.8,0.39609]
[1729779330800,0.95937,2526.9,2526.8,0.39609]
[1729779331500,0.3961,2526.7,2526.5,0.5487]
[1729779331900,3.49299327,2526.7,2526.5,0.5487]
[1729779332106,3.49299327,2526.7,2526.6,0.39612]
[1729779332497,3.2078,2526.8,2526.5,0.5487]
[1729779332700,3.2078,2526.8,2526.7,0.3961]
[1729779333300,3.2078,2527.2,2527.0,0.39604]
[1729779333504,0.39605,2527.1,2527.0,0.39606]
[1729779333803,6.70073327,2527.2,2526.8,0.39609]
[1729779334111,6.70073327,2527.2,2527.1,0.39604]
[1729779334112,3.2078,2527.2,2527.1,0.39604]
[1729779334809,3.60379,2527.5,2527.1,0.5951]
[1729779335011,3.2078,2527.5,2527.1,0.5951]
[1729779335210,3.60378,2527.5,2527.4,0.39599]
[1729779335603,3.2078,2527.5,2527.4,0.39599]
[1729779336008,3.2078,2527.5,2527.1,1.58519]
[1729779336009,4.3907,2527.8,2527.7,0.39595]
[1729779336209,3.2078,2527.8,2527.7,0.39595]
[1729779336707,3.2078,2528.1,2528.0,0.3959]
[1729779336906,0.39591,2528.0,2527.8,0.5854]
[1729779337101,0.39592,2527.9,2527.8,0.98132]
[1729779337308,0.39594,2527.8,2527.7,0.39595]
[1729779337500,3.09689327,2528.0,2527.8,0.39593]
[1729779337501,0.39592,2527.9,2527.8,0.39593]
[1729779337700,0.39591,2528.0,2527.9,0.39592]
[1729779337910,3.2078,2528.1,2528.0,0.3959]
[1729779338307,3.60369,2528.1,2528.0,0.3959]
[1729779338608,0.39591,2528.0,2527.9,0.3959]
[1729779338805,3.6037,2528.1,2527.9,0.3959]
[1729779339004,3.2078,2528.1,2528.0,0.3959]
[1729779339200,4.20078,2528.2,2528.0,0.3959]
[1729779339610,0.5987,2528.6,2527.9,3.2078]
[1729779339911,3.2078,2528.7,2528.0,3.69849327]
[1729779340111,0.39582,2528.6,2528.4,0.39583]
[1729779340310,3.2078,2528.7,2528.1,0.5657]
[1729779340709,3.2078,2528.7,2528.6,0.39581]
[1729779341819,3.2078,2528.7,2528.2,3.09689327]
[1729779342118,3.2078,2528.7,2528.6,0.3958]
[1729779342119,0.3958,2528.7,2528.6,0.3958]
[1729779342508,0.39577,2528.9,2528.7,0.39579]
[1729779342707,0.39577,2528.9,2528.7,0.39578]
[1729779343711,0.39577,2528.9,2528.3,4.19742]
[1729779344013,0.3958,2528.7,2528.5,0.39581]
[1729779344213,3.09689327,2528.9,2528.3,3.2078]
[1729779344407,4.08630327,2528.9,2528.1,0.5657]
[1729779344611,0.98945,2528.8,2528.1,0.96157]
[1729779344809,0.98945,2528.8,2528.2,0.39587]
[1729779344810,7.29420327,2528.7,2528.2,0.39587]
[1729779345012,0.39585,2528.4,2528.1,0.5657]
[1729779345315,0.5805,2528.8,2528.1,0.5657]
[1729779345316,0.39583,2528.5,2528.1,0.5657]
[1729779345617,7.29418327,2528.7,2528.1,0.5657]
[1729779345812,0.39586,2528.3,2528.2,0.39586]
[1729779346110,7.84898327,2528.7,2528.2,0.39586]
[1729779346311,0.39586,2528.3,2528.2,0.39586]
[1729779347015,0.39587,2528.2,2528.1,0.96158]
[1729779347313,6.85949327,2528.7,2528.1,0.5657]
[1729779347521,0.39586,2528.3,2528.2,0.39586]
[1729779348014,0.39585,2528.4,2528.3,0.39585]
[1729779348313,0.39584,2528.4,2528.2,0.39587]
[1729779348520,0.39583,2528.5,2528.4,0.39583]
[1729779348908,3.7626,2528.7,2528.1,0.5657]
[1729779349111,4.1584,2528.7,2528.6,0.39581]
[1729779349420,0.5549,2529.5,2528.4,4.08649327]
[1729779349421,3.2078,2529.0,2528.4,4.08649327]
[1729779349636,3.2078,2529.0,2528.9,0.39576]
[1729779349637,3.60355,2529.0,2528.9,0.39576]
[1729779349804,3.60355,2529.0,2528.4,4.08649327]
[1729779349805,3.2078,2529.0,2528.4,4.08649327]
[1729779350115,0.39579,2528.7,2528.6,0.986]
[1729779350309,0.39582,2528.6,2528.0,7.29445327]
[1729779350508,0.3958,2528.7,2528.6,0.3958]
[1729779350914,3.66769327,2528.9,2528.2,0.5697]
[1729779351213,0.39584,2528.5,2528.2,0.5697]
[1729779351422,0.39584,2528.5,2528.4,0.39584]
[1729779351620,0.39584,2528.4,2528.3,0.39584]
[1729779351914,0.39584,2528.4,2528.1,2.2707]
[1729779351915,0.39587,2528.2,2528.1,0.96159]
[1729779352117,3.09689327,2528.4,2527.9,0.3959]
[1729779352313,3.09689327,2528.4,2527.7,3.2078]
[1729779352314,0.5708,2528.3,2527.8,0.5888]
[1729779352609,0.39591,2528.0,2527.9,0.39591]
[1729779353408,0.39592,2527.9,2527.8,0.98473]
[1729779353610,0.5779,2528.2,2527.7,4.9128]
[1729779353809,0.39593,2527.9,2527.8,0.39592]
[1729779354010,0.39593,2527.9,2527.8,0.39593]
[1729779354217,0.39593,2527.8,2527.7,3.2078]
[1729779354418,0.39593,2527.8,2527.7,3.60375]
[1729779354624,0.39593,2527.8,2527.7,3.2078]
[1729779354821,0.5779,2528.2,2527.7,3.2078]
[1729779354822,0.98968,2528.2,2527.7,3.2078]
[1729779355120,0.39593,2527.8,2527.7,3.60375]
[1729779355614,0.39593,2527.8,2527.7,3.2078]
[1729779355821,4.35193,2527.8,2527.7,3.2078]
[1729779356009,8.15555044,2527.8,2527.7,3.2078]
[1729779356309,8.15555044,2527.8,2527.4,3.2078]
[1729779356310,0.98991,2527.7,2527.4,3.2078]
[1729779356509,0.39598,2527.5,2527.4,3.2078]
[1729779356911,0.39598,2527.5,2527.4,3.60379]
[1729779357508,0.39598,2527.5,2527.4,3.2078]
[1729779357916,0.39598,2527.5,2527.4,3.60379]
[1729779358617,0.39598,2527.5,2527.4,3.2078]
[1729779359322,0.95108,2527.5,2527.4,3.60379]
[1729779359619,0.95108,2527.5,2527.4,3.2078]
[1729779360310,4.90788,2527.5,2527.4,3.2078]
[1729779360623,0.95108,2527.5,2527.4,3.2078]
[1729779361116,0.39603,2527.2,2527.1,3.60384]
[1729779361419,0.39599,2527.5,2527.4,0.39598]
[1729779361612,0.97637,2527.6,2527.5,0.39598]
[1729779361811,0.39594,2527.8,2527.7,0.39593]
[1729779362023,3.2078,2527.9,2527.7,0.39593]
[1729779362220,3.60373,2527.9,2527.8,0.39593]
[1729779362519,3.2078,2527.9,2527.8,0.39593]
[1729779362915,3.60372,2527.9,2527.8,0.39593]
[1729779363118,3.2078,2527.9,2527.8,0.39593]
[1729779363814,0.39591,2528.0,2527.6,1.58851]
[1729779364025,0.6036,2528.1,2527.6,1.58851]
[1729779364026,0.39593,2527.9,2527.8,0.39592]
[1729779364217,0.39591,2528.0,2527.9,0.3959]
[1729779364614,0.39594,2527.9,2527.8,0.39592]
[1729779364817,0.39596,2527.7,2527.6,0.39596]
[1729779365019,0.39598,2527.5,2527.4,2.10099]
[1729779365318,0.39603,2527.2,2527.1,0.5629]
[1729779365524,0.39603,2527.2,2527.1,0.95893]
[1729779365919,0.39603,2527.2,2527.1,0.95894]
[1729779366327,0.39603,2527.3,2527.2,0.39601]
[1729779366620,0.39604,2527.1,2527.0,3.60386]
[1729779366823,0.39608,2526.9,2526.6,0.6009]
[1729779367022,7.01142044,2527.3,2526.9,0.39605]
[1729779367023,0.39607,2527.0,2526.9,0.39605]
[1729779367218,8.00147044,2527.3,2526.6,3.8087]
[1729779367525,0.39607,2527.0,2526.9,0.39606]
[1729779367718,8.00147044,2527.3,2526.6,3.8087]
[1729779367920,8.00147044,2527.3,2526.7,0.39609]
[1729779367921,0.3961,2526.8,2526.7,0.39609]
[1729779368625,0.39604,2527.2,2527.1,0.39603]
[1729779369118,0.39606,2527.0,2526.9,0.5531]
[1729779369324,0.39606,2527.0,2526.9,0.94917]
[1729779370320,0.39606,2527.0,2526.9,0.5531]
[1729779370520,0.39606,2527.0,2526.9,0.94917]
[1729779370716,0.39605,2527.1,2527.0,0.39605]
[1729779371022,0.39606,2527.0,2526.9,0.94917]
[1729779371218,4.19784,2527.3,2526.8,0.39608]
[1729779371219,0.39608,2526.9,2526.8,0.39608]
[1729779371528,0.39604,2527.2,2527.1,0.39604]
[1729779371913,3.2078,2527.3,2526.7,4.19807]
[1729779372221,0.39605,2527.1,2527.0,0.39604]
[1729779372423,0.39605,2527.1,2526.6,3.8087]
[1729779372424,0.39606,2527.0,2526.9,0.39605]
[1729779372828,0.39605,2527.1,2527.0,0.39605]
[1729779373229,4.19785,2527.3,2526.6,4.799]
[1729779373426,4.19785,2527.3,2526.9,0.39606]
[1729779373427,0.39607,2527.0,2526.9,0.39606]
[1729779373622,0.39605,2527.1,2527.0,0.39604]
[1729779373925,0.39604,2527.2,2527.1,0.39603]
[1729779374231,0.39605,2527.1,2527.0,0.39605]
[1729779374421,3.2078,2527.3,2526.6,3.8087]
[1729779374624,3.2078,2527.3,2526.7,0.3961]
[1729779374625,0.3961,2526.8,2526.7,0.3961]
[1729779374924,3.2078,2526.9,2526.0,1.03745295]
[1729779375122,0.39618,2526.3,2526.2,0.39617]
[1729779375425,4.19811,2526.6,2525.7,4.24525295]
[1729779375426,0.39625,2525.8,2525.7,4.24525295]
[1729779375629,0.99055,2526.0,2525.4,0.3963]
[1729779375828,0.39627,2525.7,2525.3,3.2078]
[1729779376023,0.39625,2525.8,2525.7,0.39625]
[1729779376328,0.5943,2525.9,2525.3,3.2078]
[1729779376523,0.5943,2525.9,2525.3,4.19861]
[1729779376832,0.5943,2525.9,2525.6,0.39627]
[1729779376833,0.39626,2525.7,2525.6,0.39627]
[1729779377223,0.5943,2525.9,2525.4,0.99077]
[1729779377424,0.39625,2525.8,2525.7,0.39625]
[1729779378125,0.99054,2525.9,2525.8,0.39625]
[1729779378524,0.39621,2526.1,2526.0,0.39621]
[1729779378729,0.3962,2526.1,2526.0,0.39621]
[1729779379123,4.79957,2526.5,2526.1,0.39619]
[1729779379124,0.39619,2526.2,2526.1,0.39619]
[1729779379327,4.79957,2526.5,2525.8,1.1728]
[1729779379523,3.8092,2526.5,2525.8,2.16341]
[1729779379737,3.8092,2526.5,2526.3,0.39616]
[1729779379738,0.39616,2526.4,2526.3,0.39616]
[1729779379919,0.3962,2526.2,2526.0,0.39621]
[1729779380127,0.39618,2526.3,2525.8,5.37121]
[1729779380433,3.8092,2526.5,2525.8,4.3806]
[1729779380434,0.99039,2526.4,2525.8,4.3806]
[1729779380639,4.79405044,2526.3,2525.8,4.3806]
[1729779380824,0.39623,2525.9,2525.8,4.77683]
[1729779381422,0.39623,2525.9,2525.8,3.792]
[1729779382435,0.39623,2525.9,2525.8,4.18825]
[1729779382637,0.3962,2526.1,2525.8,7.7512]
[1729779382821,4.79958,2526.5,2525.8,3.792]
[1729779383026,3.8092,2526.5,2525.8,3.792]
[1729779383226,0.39619,2526.2,2526.1,0.39619]
[1729779384130,3.8092,2526.5,2525.9,0.5989]
[1729779384131,3.2078,2526.5,2525.9,0.5989]
[1729779384433,0.39612,2526.7,2526.6,0.39612]
[1729779384935,3.2078,2526.8,2526.7,0.3961]
[1729779385137,3.2078,2527.1,2526.5,0.99035]
[1729779385644,3.2078,2527.1,2527.0,0.39606]
[1729779386142,3.2078,2527.5,2527.0,4.35286]
[1729779386440,0.39602,2527.3,2527.2,0.39603]
[1729779386642,3.2078,2527.5,2526.7,5.37209044]
[1729779386643,7.1646,2527.5,2526.7,0.5782]
[1729779386839,0.39604,2527.2,2527.1,0.39604]
[1729779387039,0.39606,2527.0,2526.9,0.39607]
[1729779387246,0.39607,2526.9,2526.8,1.56098]
[1729779387543,0.39607,2527.0,2526.8,1.1649]
[1729779387749,0.39607,2527.0,2526.9,0.39607]
[1729779388139,0.39607,2527.0,2526.8,1.1649]
[1729779388446,0.39606,2527.0,2526.9,0.39606]
[1729779388740,0.39606,2527.0,2526.8,1.1649]
[1729779388741,0.39608,2526.9,2526.8,0.39609]
[1729779389548,3.2078,2527.1,2526.2,4.19824]
[1729779389845,0.39609,2526.8,2526.7,0.3961]
[1729779390555,8.57423044,2527.1,2526.4,0.99039]
[1729779390556,0.39609,2526.9,2526.8,0.39608]
[1729779390946,0.39609,2526.8,2526.7,0.39609]
[1729779391155,0.3961,2526.8,2526.7,0.3961]
[1729779391638,0.39607,2527.0,2526.9,0.39607]
[1729779392244,4.17655,2527.1,2527.0,0.39606]
[1729779392444,3.2078,2527.1,2526.5,4.19815]
[1729779392751,0.3961,2526.8,2526.7,0.39609]
[1729779392938,0.39606,2527.0,2526.9,0.39607]
[1729779393139,3.2078,2527.1,2526.5,3.2078]
[1729779393344,0.39609,2526.9,2526.8,0.39609]
[1729779393547,3.2078,2527.1,2526.6,0.39611]
[1729779393548,0.39611,2526.7,2526.6,0.39611]
[1729779393746,0.39611,2526.7,2526.6,0.3961]
[1729779393944,0.568,2526.8,2526.3,1.56161]
[1729779394142,0.9641,2526.8,2526.7,0.3961]
[1729779394343,0.39612,2526.7,2526.6,0.39612]
[1729779394747,0.568,2526.8,2526.3,0.5712]
[1729779394748,3.7758,2526.8,2526.3,0.5712]
[1729779394951,0.96409,2526.8,2526.7,0.3961]
[1729779395147,3.2078,2527.1,2526.3,1.5616]
[1729779395347,0.39608,2526.9,2526.8,0.39608]
[1729779395955,3.7758,2527.1,2526.5,0.99035]
[1729779396159,0.39606,2527.0,2526.9,0.39606]
[1729779396346,3.2078,2527.1,2527.0,0.39606]
[1729779396755,0.39607,2527.0,2526.9,0.39606]
[1729779397050,0.39606,2527.0,2526.9,0.39606]
[1729779398047,0.39605,2527.1,2527.0,0.39605]
[1729779398247,0.39605,2527.1,2526.8,0.5533]
[1729779398248,0.5895,2527.3,2526.8,0.5533]
[1729779398550,0.5895,2527.3,2527.2,0.39603]
[1729779398551,0.98552,2527.3,2527.2,0.39603]
[1729779399054,4.1839,2527.4,2527.3,0.39601]
[1729779399249,3.2078,2527.4,2527.3,0.39601]
[1729779400553,7.01142044,2527.4,2526.8,3.7611]
[1729779400747,7.01142044,2527.4,2526.8,0.5533]
[1729779400748,3.80362044,2527.2,2526.8,0.5533]
[1729779401049,0.39607,2527.0,2526.9,0.39607]
[1729779401243,0.5583,2527.1,2527.0,0.39606]
[1729779401244,0.95435,2527.1,2527.0,0.39606]
[1729779401951,0.5747,2527.3,2526.8,1.54352]
[1729779402257,0.39604,2527.2,2527.1,0.39603]
[1729779402452,0.5747,2527.3,2526.8,0.5533]
[1729779402658,0.39607,2527.0,2526.9,0.39606]
[1729779402955,3.80362044,2527.1,2526.5,0.99035]
[1729779403255,7.58612044,2527.3,2526.9,0.39606]
[1729779403451,7.58612044,2527.3,2526.6,2.0988]
[1729779403657,0.39608,2526.9,2526.8,0.39607]
[1729779404244,0.3961,2526.8,2526.7,0.39609]
[1729779404649,0.5617,2526.9,2526.6,1.1085]
[1729779404852,0.39616,2526.4,2526.3,0.39615]
[1729779405059,0.39616,2526.4,2526.1,3.60398]
[1729779405060,0.39618,2526.2,2526.1,3.60398]
[1729779405260,0.39618,2526.2,2526.1,3.2078]
[1729779405552,4.35458,2526.2,2526.1,3.2078]
[1729779405757,0.39618,2526.2,2526.1,3.604]
[1729779406456,0.39618,2526.3,2526.2,0.39617]
[1729779407052,0.39618,2526.2,2526.1,3.60399]
[1729779407257,0.39618,2526.2,2526.1,3.604]
[1729779408452,0.39618,2526.3,2526.2,0.39617]
[1729779409460,0.39618,2526.2,2526.1,3.2078]
[1729779410063,4.35458,2526.2,2526.1,3.2078]
[1729779410563,0.39618,2526.2,2526.1,3.2078]
[1729779411452,0.39618,2526.2,2526.1,3.604]
[1729779412266,0.39618,2526.3,2526.2,0.39617]
[1729779413449,0.5519,2526.4,2526.1,3.60398]
[1729779413450,0.39618,2526.2,2526.1,3.60398]
[1729779413855,0.39618,2526.2,2526.1,3.2078]
[1729779413856,4.35458,2526.2,2526.1,3.2078]
[1729779414055,8.15820044,2526.2,2526.1,3.2078]
[1729779415453,0.39625,2525.8,2525.7,3.60406]
[1729779416156,0.39625,2525.8,2525.7,0.39626]
[1729779418668,0.39624,2525.9,2525.8,0.39623]
[1729779418865,3.60403,2526.0,2525.9,0.39623]
[1729779419171,0.39624,2525.9,2525.8,0.39623]
[1729779419368,4.79416044,2526.0,2525.6,0.5884]
[1729779419564,0.555,2525.9,2525.5,0.96788]
[1729779419866,0.39628,2525.6,2525.5,0.96788]
[1729779420561,0.39628,2525.6,2525.5,0.5716]
[1729779420766,0.39629,2525.5,2525.4,3.6041]
[1729779421272,0.39629,2525.5,2525.4,3.2078]
[1729779421470,0.39629,2525.5,2525.4,3.60411]
[1729779421672,0.39629,2525.6,2525.5,0.39627]
[1729779421965,0.99064,2525.8,2525.7,0.39625]
[1729779421966,0.39627,2525.8,2525.7,0.39625]
[1729779422166,1.1451,2525.9,2525.4,3.2078]
[1729779422362,0.39628,2525.7,2525.6,0.39627]
[1729779422962,0.39629,2525.6,2525.5,0.39628]
[1729779423468,0.39629,2525.5,2525.4,3.60409]
[1729779423672,2.13571,2525.9,2525.4,3.2078]
[1729779423873,1.1451,2525.9,2525.4,4.19857]
[1729779424069,0.39626,2525.8,2525.7,0.39625]
[1729779424367,0.39628,2525.7,2525.6,0.39627]
[1729779424572,3.80362044,2525.6,2525.4,0.39629]
[1729779424767,0.39629,2525.6,2525.5,0.39628]
[1729779425066,0.39631,2525.4,2525.3,0.5708]
[1729779425265,0.39631,2525.4,2524.9,0.5529]
[1729779425266,0.39637,2525.0,2524.9,0.5529]
[1729779425469,0.3964,2524.8,2524.7,4.15701]
[1729779425668,0.3964,2524.9,2524.8,0.39639]
[1729779425870,0.3964,2524.8,2524.7,3.7606]
[1729779426066,0.3964,2524.8,2524.7,3.2078]
[1729779426667,0.3964,2524.8,2524.1,0.39651]
[1729779426668,0.3965,2524.2,2524.1,0.39651]
[1729779426869,0.39651,2524.1,2524.0,0.5682]
[1729779427376,0.39654,2523.9,2523.8,3.776]
[1729779427569,3.80362044,2524.2,2523.8,0.5682]
[1729779427772,0.99113,2524.6,2524.0,0.39653]
[1729779427773,3.2078,2524.4,2524.0,0.39653]
[1729779427963,3.2078,2524.1,2523.8,0.5682]
[1729779428164,0.39653,2524.0,2523.8,0.96475]
[1729779428365,0.39653,2524.0,2523.8,0.5682]
[1729779428573,3.2078,2524.1,2523.8,0.5682]
[1729779428769,0.39653,2524.0,2523.8,0.96475]
[1729779429078,0.39653,2524.0,2523.8,0.5682]
[1729779429266,0.39654,2523.9,2523.8,0.5682]
[1729779429463,3.2078,2524.1,2523.8,0.5682]
[1729779429869,3.2078,2524.1,2523.9,0.39654]
[1729779430480,3.2078,2524.1,2523.8,0.5682]
[1729779430678,3.2078,2524.1,2523.9,0.39654]
[1729779430875,3.60431,2524.1,2523.8,0.96475]
[1729779431076,3.60431,2524.1,2523.8,0.5682]
[1729779431373,3.2078,2524.1,2523.9,0.39654]
[1729779431777,7.1694,2524.1,2523.9,0.39654]
[1729779432666,7.1694,2524.1,2524.0,0.39653]
[1729779432667,3.2078,2524.1,2524.0,0.39653]
[1729779433271,7.1694,2524.1,2524.0,0.39653]
[1729779434174,7.1694,2524.1,2523.8,0.5682]
[1729779434372,0.39654,2524.0,2523.7,0.39657]
[1729779434773,3.2078,2524.1,2523.6,0.96478]
[1729779435080,0.99124,2524.3,2522.9,4.79536044]
[1729779435081,0.39661,2523.5,2523.3,0.39663]